[Event "Early-Titled-Tuesday-Blitz-September-12-2023"]
[Site "Chess.com"]
[Date "2023.09.12"]
[Round "11"]
[White "MatthewG-p4p"]
[Black "DenLaz"]
[Result "0-1"]
[WhiteElo "2883"]
[BlackElo "3066"]
[TimeControl "180+1"]
[EndTime "10:06:30 PDT"]
[Termination "DenLaz won by checkmate"]

1. e4 {[%clk 0:02:57.7]} 1... c5 {[%clk 0:02:59]} 2. c3 {[%clk 0:02:57.6]} 2...
d5 {[%clk 0:02:57.9]} 3. exd5 {[%clk 0:02:58.5]} 3... Qxd5 {[%clk 0:02:57.5]} 4.
d4 {[%clk 0:02:58.7]} 4... Nf6 {[%clk 0:02:58.1]} 5. Nf3 {[%clk 0:02:58.8]} 5...
e6 {[%clk 0:02:58.7]} 6. Na3 {[%clk 0:02:58.6]} 6... a6 {[%clk 0:02:58.3]} 7.
Nc4 {[%clk 0:02:58]} 7... Nbd7 {[%clk 0:02:58.7]} 8. a4 {[%clk 0:02:58.4]} 8...
cxd4 {[%clk 0:02:52.4]} 9. Qxd4 {[%clk 0:02:58.5]} 9... Bc5 {[%clk 0:02:52.7]}
10. Qh4 {[%clk 0:02:52.2]} 10... O-O {[%clk 0:02:44.9]} 11. Be3 {[%clk
0:02:46.6]} 11... Bxe3 {[%clk 0:02:36.2]} 12. Nxe3 {[%clk 0:02:46.6]} 12... Qc5
{[%clk 0:02:36.8]} 13. Bd3 {[%clk 0:02:23.9]} 13... b6 {[%clk 0:02:36]} 14. Ng5
{[%clk 0:02:23.6]} 14... h6 {[%clk 0:02:33]} 15. Ne4 {[%clk 0:02:23.6]} 15...
Qc7 {[%clk 0:02:32.1]} 16. Nxf6+ {[%clk 0:02:08.5]} 16... Nxf6 {[%clk 0:02:33]}
17. O-O {[%clk 0:02:06.3]} 17... Bb7 {[%clk 0:02:33.4]} 18. Rad1 {[%clk
0:02:05.9]} 18... Rfd8 {[%clk 0:02:33.7]} 19. Bc2 {[%clk 0:02:02.7]} 19... Qc5
{[%clk 0:02:10.5]} 20. Qc4 {[%clk 0:01:42.9]} 20... Qe5 {[%clk 0:02:07.4]} 21.
Qb4 {[%clk 0:01:37.5]} 21... Qc7 {[%clk 0:01:49.3]} 22. Qc4 {[%clk 0:01:35.3]}
22... Qe7 {[%clk 0:01:48.2]} 23. Qh4 {[%clk 0:01:33.3]} 23... Kf8 {[%clk
0:01:41.1]} 24. Nc4 {[%clk 0:01:18.7]} 24... Nd5 {[%clk 0:01:36.8]} 25. Qxe7+
{[%clk 0:00:54.6]} 25... Kxe7 {[%clk 0:01:37.7]} 26. Rfe1 {[%clk 0:00:46.8]}
26... Rac8 {[%clk 0:01:34.7]} 27. Ne5 {[%clk 0:00:39.4]} 27... Nf4 {[%clk
0:01:19.2]} 28. f3 {[%clk 0:00:39.6]} 28... g5 {[%clk 0:01:18.3]} 29. Kf2 {[%clk
0:00:35.8]} 29... f6 {[%clk 0:01:14.8]} 30. Ng4 {[%clk 0:00:16.9]} 30... h5
{[%clk 0:01:06.2]} 31. Ne3 {[%clk 0:00:17.3]} 31... Rxd1 {[%clk 0:01:06.8]} 32.
Rxd1 {[%clk 0:00:17.6]} 32... h4 {[%clk 0:01:04.9]} 33. g3 {[%clk 0:00:16.3]}
33... Nd5 {[%clk 0:00:45.4]} 34. Bb3 {[%clk 0:00:16.5]} 34... Nxe3 {[%clk
0:00:44.4]} 35. Kxe3 {[%clk 0:00:17.4]} 35... Rh8 {[%clk 0:00:44.8]} 36. Re1
{[%clk 0:00:07.8]} 36... hxg3 {[%clk 0:00:35.9]} 37. hxg3 {[%clk 0:00:08.7]}
37... e5 {[%clk 0:00:36.5]} 38. Bc2 {[%clk 0:00:06.6]} 38... Rh3 {[%clk
0:00:35.4]} 39. Rg1 {[%clk 0:00:07.1]} 39... Rh2 {[%clk 0:00:35.1]} 40. Rc1
{[%clk 0:00:05.1]} 40... Ke6 {[%clk 0:00:33.6]} 41. g4 {[%clk 0:00:04.1]} 41...
Bc6 {[%clk 0:00:30]} 42. b4 {[%clk 0:00:04]} 42... Kd6 {[%clk 0:00:24.3]} 43. c4
{[%clk 0:00:04.1]} 43... Kc7 {[%clk 0:00:20.2]} 44. b5 {[%clk 0:00:03.3]} 44...
Bb7 {[%clk 0:00:19.2]} 45. bxa6 {[%clk 0:00:03.4]} 45... Bxa6 {[%clk 0:00:20.1]}
46. Be4 {[%clk 0:00:03.5]} 46... Ra2 {[%clk 0:00:08.2]} 47. c5 {[%clk
0:00:03.8]} 47... Re2# {[%clk 0:00:08.5]} 0-1

[Event "Early-Titled-Tuesday-Blitz-September-12-2023"]
[Site "Chess.com"]
[Date "2023.09.12"]
[Round "11"]
[White "Zurability"]
[Black "TigrVShlyape"]
[Result "1/2-1/2"]
[WhiteElo "2808"]
[BlackElo "2939"]
[TimeControl "180+1"]
[EndTime "10:06:31 PDT"]
[Termination "Game drawn - insufficient material"]

1. Nf3 {[%clk 0:03:00.9]} 1... Nf6 {[%clk 0:02:59.3]} 2. g3 {[%clk 0:02:58.2]}
2... g6 {[%clk 0:02:58.9]} 3. Bg2 {[%clk 0:02:58.8]} 3... Bg7 {[%clk 0:02:59.2]}
4. O-O {[%clk 0:02:59.6]} 4... O-O {[%clk 0:02:59.6]} 5. d4 {[%clk 0:03:00.3]}
5... d6 {[%clk 0:03:00]} 6. Nc3 {[%clk 0:02:54.9]} 6... Nbd7 {[%clk 0:02:59.1]}
7. e4 {[%clk 0:02:55]} 7... e5 {[%clk 0:02:58.9]} 8. h3 {[%clk 0:02:55.5]} 8...
c6 {[%clk 0:02:58.2]} 9. a4 {[%clk 0:02:49.6]} 9... a5 {[%clk 0:02:57.8]} 10.
dxe5 {[%clk 0:02:46.1]} 10... dxe5 {[%clk 0:02:57.3]} 11. Be3 {[%clk 0:02:46.1]}
11... Qe7 {[%clk 0:02:55.2]} 12. Nd2 {[%clk 0:02:42.7]} 12... Nc5 {[%clk
0:02:52.3]} 13. Nc4 {[%clk 0:02:41.1]} 13... Nfd7 {[%clk 0:02:27]} 14. Qd6
{[%clk 0:02:08.9]} 14... Qxd6 {[%clk 0:02:19.9]} 15. Nxd6 {[%clk 0:02:09.8]}
15... Ne6 {[%clk 0:02:19.1]} 16. f4 {[%clk 0:02:05]} 16... exf4 {[%clk
0:02:08.3]} 17. gxf4 {[%clk 0:02:04.1]} 17... Bd4 {[%clk 0:01:56.3]} 18. Rae1
{[%clk 0:01:51.3]} 18... Bxe3+ {[%clk 0:01:54.5]} 19. Rxe3 {[%clk 0:01:52.2]}
19... f6 {[%clk 0:01:49.2]} 20. h4 {[%clk 0:01:40.7]} 20... Ndc5 {[%clk
0:01:45.3]} 21. h5 {[%clk 0:01:13.3]} 21... Nd4 {[%clk 0:01:37.4]} 22. Nxc8
{[%clk 0:01:10.6]} 22... Raxc8 {[%clk 0:01:36.6]} 23. Rf2 {[%clk 0:01:08.5]}
23... Kg7 {[%clk 0:01:36.1]} 24. Rg3 {[%clk 0:01:05.7]} 24... f5 {[%clk
0:01:31.9]} 25. hxg6 {[%clk 0:00:53.7]} 25... hxg6 {[%clk 0:01:31.5]} 26. Bh3
{[%clk 0:00:48.5]} 26... Nce6 {[%clk 0:01:30.2]} 27. Nd1 {[%clk 0:00:38.2]}
27... Nc5 {[%clk 0:01:10]} 28. Rfg2 {[%clk 0:00:20.5]} 28... Nxe4 {[%clk
0:01:05.1]} 29. Rxg6+ {[%clk 0:00:20.6]} 29... Kf7 {[%clk 0:01:04.9]} 30. Rg7+
{[%clk 0:00:19.5]} 30... Ke6 {[%clk 0:01:03.8]} 31. R2g6+ {[%clk 0:00:17.4]}
31... Rf6 {[%clk 0:01:02.6]} 32. Ne3 {[%clk 0:00:18.1]} 32... Rxg6+ {[%clk
0:00:57.3]} 33. Rxg6+ {[%clk 0:00:19]} 33... Kf7 {[%clk 0:00:57.5]} 34. Rh6
{[%clk 0:00:12.3]} 34... Kg7 {[%clk 0:00:55.3]} 35. Nxf5+ {[%clk 0:00:06.5]}
35... Nxf5 {[%clk 0:00:54]} 36. Bxf5 {[%clk 0:00:07.4]} 36... Kxh6 {[%clk
0:00:52.4]} 37. Bxc8 {[%clk 0:00:07.4]} 37... Nd6 {[%clk 0:00:49]} 38. Be6
{[%clk 0:00:06.4]} 38... Kg6 {[%clk 0:00:49.1]} 39. Kf2 {[%clk 0:00:06.9]} 39...
Kf6 {[%clk 0:00:49.4]} 40. Bg4 {[%clk 0:00:06.8]} 40... Ne4+ {[%clk 0:00:47.7]}
41. Ke3 {[%clk 0:00:06.5]} 41... Nc5 {[%clk 0:00:48.1]} 42. b3 {[%clk
0:00:07.1]} 42... b6 {[%clk 0:00:45.5]} 43. Kd4 {[%clk 0:00:06.7]} 43... Na6
{[%clk 0:00:33.7]} 44. Bd7 {[%clk 0:00:05.2]} 44... c5+ {[%clk 0:00:30.9]} 45.
Kd5 {[%clk 0:00:04.8]} 45... Nb4+ {[%clk 0:00:30.9]} 46. Kc4 {[%clk 0:00:03.6]}
46... Nxc2 {[%clk 0:00:30.4]} 47. Kb5 {[%clk 0:00:03.7]} 47... Nd4+ {[%clk
0:00:30.7]} 48. Kxb6 {[%clk 0:00:04.3]} 48... Nxb3 {[%clk 0:00:30.8]} 49. Bb5
{[%clk 0:00:04.7]} 49... Kf5 {[%clk 0:00:29]} 50. Bc4 {[%clk 0:00:05.2]} 50...
Nd2 {[%clk 0:00:29]} 51. Kxc5 {[%clk 0:00:05.8]} 51... Kxf4 {[%clk 0:00:28.1]}
52. Bf7 {[%clk 0:00:05.1]} 52... Ke5 {[%clk 0:00:28.1]} 53. Kb5 {[%clk
0:00:05.4]} 53... Kd6 {[%clk 0:00:28.4]} 54. Kxa5 {[%clk 0:00:05.9]} 54... Kc5
{[%clk 0:00:27.2]} 55. Ka6 {[%clk 0:00:06]} 55... Ne4 {[%clk 0:00:26.7]} 56. a5
{[%clk 0:00:05.9]} 56... Kc6 {[%clk 0:00:27]} 57. Ka7 {[%clk 0:00:04.9]} 57...
Kc7 {[%clk 0:00:27.2]} 58. a6 {[%clk 0:00:04.9]} 58... Nd6 {[%clk 0:00:26.9]}
59. Bd5 {[%clk 0:00:05.3]} 59... Nb5+ {[%clk 0:00:26.5]} 60. Ka8 {[%clk
0:00:05.4]} 60... Kc8 {[%clk 0:00:26]} 61. Bg2 {[%clk 0:00:05]} 61... Nc7+
{[%clk 0:00:25]} 62. Ka7 {[%clk 0:00:05.3]} 62... Nxa6 {[%clk 0:00:25.4]}
1/2-1/2

[Event "Early-Titled-Tuesday-Blitz-September-12-2023"]
[Site "Chess.com"]
[Date "2023.09.12"]
[Round "11"]
[White "ckgchess"]
[Black "GianmarcoVaR"]
[Result "1-0"]
[WhiteElo "2878"]
[BlackElo "2656"]
[TimeControl "180+1"]
[EndTime "10:06:32 PDT"]
[Termination "ckgchess won on time"]

1. e4 {[%clk 0:03:00.9]} 1... c5 {[%clk 0:02:54.4]} 2. c3 {[%clk 0:03:01.1]}
2... Nf6 {[%clk 0:02:49.7]} 3. e5 {[%clk 0:03:01.1]} 3... Nd5 {[%clk 0:02:50.4]}
4. d4 {[%clk 0:03:02]} 4... cxd4 {[%clk 0:02:49.7]} 5. Bc4 {[%clk 0:03:02.7]}
5... Nb6 {[%clk 0:02:42]} 6. Bb3 {[%clk 0:03:03]} 6... Nc6 {[%clk 0:02:25.7]} 7.
cxd4 {[%clk 0:02:55.9]} 7... d5 {[%clk 0:02:22.1]} 8. Bc2 {[%clk 0:02:48.6]}
8... g6 {[%clk 0:02:12.1]} 9. Nc3 {[%clk 0:02:48.3]} 9... Bg7 {[%clk 0:02:11.5]}
10. h3 {[%clk 0:02:27.9]} 10... O-O {[%clk 0:02:08.5]} 11. Nf3 {[%clk
0:02:28.1]} 11... f6 {[%clk 0:02:02.9]} 12. exf6 {[%clk 0:02:24.7]} 12... exf6
{[%clk 0:02:01.1]} 13. O-O {[%clk 0:02:24.7]} 13... Be6 {[%clk 0:01:55.4]} 14.
Re1 {[%clk 0:02:24.9]} 14... Qd7 {[%clk 0:01:55.4]} 15. Bf4 {[%clk 0:02:23.4]}
15... a6 {[%clk 0:01:26.9]} 16. Na4 {[%clk 0:02:05.8]} 16... Nxa4 {[%clk
0:01:26.7]} 17. Bxa4 {[%clk 0:02:06.7]} 17... Rfe8 {[%clk 0:01:18.5]} 18. Rc1
{[%clk 0:02:05.9]} 18... Bf8 {[%clk 0:01:12.7]} 19. Bxc6 {[%clk 0:01:54.9]}
19... bxc6 {[%clk 0:01:12.7]} 20. Qa4 {[%clk 0:01:55.5]} 20... Rec8 {[%clk
0:01:00.9]} 21. Rc3 {[%clk 0:01:43.3]} 21... c5 {[%clk 0:00:38.8]} 22. Qxd7
{[%clk 0:01:24]} 22... Bxd7 {[%clk 0:00:39.7]} 23. dxc5 {[%clk 0:01:24.8]} 23...
Rxc5 {[%clk 0:00:39.9]} 24. Rxc5 {[%clk 0:01:15.4]} 24... Bxc5 {[%clk
0:00:40.4]} 25. Rd1 {[%clk 0:01:16.1]} 25... Rc8 {[%clk 0:00:27.7]} 26. b3
{[%clk 0:00:51.1]} 26... Be6 {[%clk 0:00:23.7]} 27. Nd4 {[%clk 0:00:49.3]} 27...
Bd7 {[%clk 0:00:23.6]} 28. Be3 {[%clk 0:00:47.8]} 28... Ba3 {[%clk 0:00:15.2]}
29. Ne2 {[%clk 0:00:42.8]} 29... Be6 {[%clk 0:00:10.2]} 30. Nf4 {[%clk
0:00:42.9]} 30... Kf7 {[%clk 0:00:09.3]} 31. Nxd5 {[%clk 0:00:40.4]} 31... Rc2
{[%clk 0:00:08.7]} 32. Nf4 {[%clk 0:00:19.7]} 32... Rxa2 {[%clk 0:00:08.9]} 33.
Nxe6 {[%clk 0:00:19.6]} 33... Kxe6 {[%clk 0:00:09.8]} 34. Rd8 {[%clk 0:00:15.8]}
34... Be7 {[%clk 0:00:08.4]} 35. Ra8 {[%clk 0:00:13.9]} 35... h5 {[%clk
0:00:05.4]} 36. g3 {[%clk 0:00:14]} 36... g5 {[%clk 0:00:04.9]} 37. Kg2 {[%clk
0:00:14]} 37... Bd6 {[%clk 0:00:04.6]} 38. Rh8 {[%clk 0:00:12.4]} 38... Ra3
{[%clk 0:00:03.4]} 39. Rxh5 {[%clk 0:00:12.7]} 39... Rxb3 {[%clk 0:00:03.7]} 40.
Rh8 {[%clk 0:00:13.3]} 40... a5 {[%clk 0:00:02.7]} 41. Ra8 {[%clk 0:00:14]}
41... Ra3 {[%clk 0:00:01.8]} 42. Ra6 {[%clk 0:00:14.1]} 42... Ke7 {[%clk
0:00:01.5]} 43. Bd4 {[%clk 0:00:12.5]} 43... a4 {[%clk 0:00:01.3]} 44. Bxf6+
{[%clk 0:00:12.6]} 44... Kxf6 {[%clk 0:00:01.8]} 45. Rxd6+ {[%clk 0:00:12.7]}
45... Kf7 {[%clk 0:00:01.8]} 46. Ra6 {[%clk 0:00:13]} 46... Ra2 {[%clk
0:00:01.5]} 47. Kf3 {[%clk 0:00:13.4]} 47... a3 {[%clk 0:00:02.1]} 48. Kg4
{[%clk 0:00:12.2]} 48... Rxf2 {[%clk 0:00:02.5]} 49. Rxa3 {[%clk 0:00:12.3]}
49... Kf6 {[%clk 0:00:01.2]} 50. Ra6+ {[%clk 0:00:12.4]} 1-0

[Event "Early-Titled-Tuesday-Blitz-September-12-2023"]
[Site "Chess.com"]
[Date "2023.09.12"]
[Round "11"]
[White "LangesNasenhaar"]
[Black "mmDarko"]
[Result "1-0"]
[WhiteElo "2455"]
[BlackElo "2247"]
[TimeControl "180+1"]
[EndTime "10:06:32 PDT"]
[Termination "LangesNasenhaar won on time"]

1. d4 {[%clk 0:02:56.5]} 1... e6 {[%clk 0:03:00.9]} 2. Nc3 {[%clk 0:02:54.2]}
2... Nf6 {[%clk 0:02:59.9]} 3. Bf4 {[%clk 0:02:53.4]} 3... d5 {[%clk 0:02:59.9]}
4. Nb5 {[%clk 0:02:52.1]} 4... Na6 {[%clk 0:02:59.6]} 5. e3 {[%clk 0:02:52.3]}
5... Bd6 {[%clk 0:02:54]} 6. Nxd6+ {[%clk 0:02:51.4]} 6... cxd6 {[%clk 0:02:54]}
7. c3 {[%clk 0:02:42.8]} 7... O-O {[%clk 0:02:52.8]} 8. Be2 {[%clk 0:02:39.2]}
8... Nc7 {[%clk 0:02:39]} 9. h3 {[%clk 0:02:35.1]} 9... b6 {[%clk 0:02:39]} 10.
Nf3 {[%clk 0:02:35.2]} 10... Ba6 {[%clk 0:02:31.6]} 11. Bxa6 {[%clk 0:02:34.7]}
11... Nxa6 {[%clk 0:02:31.8]} 12. O-O {[%clk 0:02:35.6]} 12... Qd7 {[%clk
0:02:26.6]} 13. Nd2 {[%clk 0:02:26.5]} 13... Nc7 {[%clk 0:02:22.8]} 14. a4
{[%clk 0:02:24]} 14... Rae8 {[%clk 0:02:13.6]} 15. Bh2 {[%clk 0:02:06.8]} 15...
Ne4 {[%clk 0:02:06.4]} 16. Nb3 {[%clk 0:01:55]} 16... f5 {[%clk 0:01:58.4]} 17.
f3 {[%clk 0:01:47.8]} 17... Nf6 {[%clk 0:01:54.4]} 18. Qd3 {[%clk 0:01:48.2]}
18... e5 {[%clk 0:01:42.8]} 19. Qc2 {[%clk 0:01:40]} 19... e4 {[%clk 0:01:29.5]}
20. f4 {[%clk 0:01:36.5]} 20... Ne6 {[%clk 0:01:20.6]} 21. Bg3 {[%clk
0:01:33.6]} 21... Rc8 {[%clk 0:01:19.3]} 22. Bh4 {[%clk 0:01:31.3]} 22... Ne8
{[%clk 0:01:11.1]} 23. Nd2 {[%clk 0:01:24.4]} 23... h6 {[%clk 0:01:00.2]} 24.
Qb3 {[%clk 0:01:22.1]} 24... g5 {[%clk 0:00:55.3]} 25. Bg3 {[%clk 0:01:20]}
25... N6c7 {[%clk 0:00:36.2]} 26. Rf2 {[%clk 0:01:08.5]} 26... Nf6 {[%clk
0:00:31.3]} 27. fxg5 {[%clk 0:00:58.4]} 27... hxg5 {[%clk 0:00:31.1]} 28. Qa3
{[%clk 0:00:57.2]} 28... Nce8 {[%clk 0:00:19.4]} 29. Raf1 {[%clk 0:00:52.1]}
29... Nh5 {[%clk 0:00:19.1]} 30. Bh2 {[%clk 0:00:49.1]} 30... Rf6 {[%clk
0:00:14.4]} 31. Qb3 {[%clk 0:00:41.6]} 31... Nc7 {[%clk 0:00:11.8]} 32. Re1
{[%clk 0:00:30.4]} 32... Rcf8 {[%clk 0:00:11.2]} 33. g3 {[%clk 0:00:18.4]} 33...
Kg7 {[%clk 0:00:10.5]} 34. Kg2 {[%clk 0:00:17.8]} 34... Kg6 {[%clk 0:00:09.8]}
35. Ref1 {[%clk 0:00:15.8]} 35... Ng7 {[%clk 0:00:09.7]} 36. a5 {[%clk
0:00:13.3]} 36... b5 {[%clk 0:00:09.1]} 37. Qc2 {[%clk 0:00:12.9]} 37... a6
{[%clk 0:00:08.8]} 38. Kg1 {[%clk 0:00:10.4]} 38... Qe6 {[%clk 0:00:08.6]} 39.
b3 {[%clk 0:00:10.5]} 39... Rh8 {[%clk 0:00:08.4]} 40. Kg2 {[%clk 0:00:07.9]}
40... f4 {[%clk 0:00:07.3]} 41. g4 {[%clk 0:00:06.8]} 41... f3+ {[%clk
0:00:06.9]} 42. Nxf3 {[%clk 0:00:06.7]} 42... Rxh3 {[%clk 0:00:03.9]} 43. Kxh3
{[%clk 0:00:05.3]} 43... Kf7 {[%clk 0:00:02.9]} 44. Ng1 {[%clk 0:00:05.3]} 1-0

[Event "Early-Titled-Tuesday-Blitz-September-12-2023"]
[Site "Chess.com"]
[Date "2023.09.12"]
[Round "11"]
[White "artooon"]
[Black "vi_pranav"]
[Result "0-1"]
[WhiteElo "3042"]
[BlackElo "2997"]
[TimeControl "180+1"]
[EndTime "10:06:33 PDT"]
[Termination "vi_pranav won by checkmate"]

1. e4 {[%clk 0:03:00.9]} 1... e5 {[%clk 0:02:59.7]} 2. Nf3 {[%clk 0:03:01.4]}
2... Nc6 {[%clk 0:03:00.4]} 3. Bc4 {[%clk 0:03:01.9]} 3... Nf6 {[%clk
0:03:00.3]} 4. Ng5 {[%clk 0:03:02.1]} 4... d5 {[%clk 0:02:59.9]} 5. exd5 {[%clk
0:03:03]} 5... Na5 {[%clk 0:03:00.6]} 6. Bb5+ {[%clk 0:03:03.3]} 6... c6 {[%clk
0:03:01]} 7. dxc6 {[%clk 0:03:04.2]} 7... bxc6 {[%clk 0:03:01.9]} 8. Qf3 {[%clk
0:03:04.9]} 8... Rb8 {[%clk 0:02:59.2]} 9. Bd3 {[%clk 0:03:05]} 9... Be7 {[%clk
0:02:57.4]} 10. Nc3 {[%clk 0:03:04.3]} 10... O-O {[%clk 0:02:39.1]} 11. O-O
{[%clk 0:03:04.1]} 11... h6 {[%clk 0:02:36]} 12. Nge4 {[%clk 0:03:04.4]} 12...
Nd5 {[%clk 0:02:07.4]} 13. Ng3 {[%clk 0:03:04.6]} 13... g6 {[%clk 0:02:06.5]}
14. Re1 {[%clk 0:03:04.5]} 14... Bd6 {[%clk 0:01:57.6]} 15. Be4 {[%clk
0:02:43.1]} 15... f5 {[%clk 0:01:45.5]} 16. Bxd5+ {[%clk 0:02:42.4]} 16... cxd5
{[%clk 0:01:46.4]} 17. Qxd5+ {[%clk 0:02:31.8]} 17... Kh7 {[%clk 0:01:45.9]} 18.
Qf3 {[%clk 0:02:13.6]} 18... Bb7 {[%clk 0:01:37.4]} 19. Qd1 {[%clk 0:02:13.5]}
19... Nc6 {[%clk 0:01:36.5]} 20. d3 {[%clk 0:02:09.5]} 20... Qh4 {[%clk
0:01:34.9]} 21. Nb5 {[%clk 0:01:56.1]} 21... Be7 {[%clk 0:01:20]} 22. Ne2 {[%clk
0:01:23.3]} 22... a6 {[%clk 0:01:05.9]} 23. Nbc3 {[%clk 0:01:22.9]} 23... Bd6
{[%clk 0:01:03.7]} 24. h3 {[%clk 0:01:11.1]} 24... Rbe8 {[%clk 0:01:00.2]} 25.
Nd5 {[%clk 0:01:04]} 25... f4 {[%clk 0:00:35.5]} 26. f3 {[%clk 0:00:57.9]} 26...
Nd4 {[%clk 0:00:30.9]} 27. c4 {[%clk 0:00:43.1]} 27... Nc2 {[%clk 0:00:24.8]}
28. g3 {[%clk 0:00:32.2]} 28... fxg3 {[%clk 0:00:18.4]} 29. Qxc2 {[%clk
0:00:30]} 29... g2 {[%clk 0:00:17.8]} 30. Qd2 {[%clk 0:00:23.3]} 30... g5 {[%clk
0:00:10.3]} 31. Kxg2 {[%clk 0:00:23.2]} 31... Rxf3 {[%clk 0:00:05.5]} 32. Ng1
{[%clk 0:00:14.2]} 32... Rg3+ {[%clk 0:00:03.7]} 33. Kh1 {[%clk 0:00:14.8]}
33... Rf8 {[%clk 0:00:01.7]} 34. Qh2 {[%clk 0:00:12.9]} 34... e4 {[%clk
0:00:01.9]} 35. Rxe4 {[%clk 0:00:12.4]} 35... Qh5 {[%clk 0:00:02.6]} 36. Re7+
{[%clk 0:00:08.7]} 36... Kg8 {[%clk 0:00:01.8]} 37. Qe2 {[%clk 0:00:04.7]} 37...
Bxd5+ {[%clk 0:00:02.1]} 38. cxd5 {[%clk 0:00:04.7]} 38... Rxh3+ {[%clk
0:00:02.3]} 39. Nxh3 {[%clk 0:00:03.5]} 39... Qxh3+ {[%clk 0:00:03]} 40. Kg1
{[%clk 0:00:03.9]} 40... Rf1+ {[%clk 0:00:03.4]} 41. Qxf1 {[%clk 0:00:03.9]}
41... Qh2# {[%clk 0:00:04]} 0-1

[Event "Early-Titled-Tuesday-Blitz-September-12-2023"]
[Site "Chess.com"]
[Date "2023.09.12"]
[Round "11"]
[White "Boxerandchessplayer"]
[Black "DKmirl"]
[Result "1-0"]
[WhiteElo "2135"]
[BlackElo "2263"]
[TimeControl "180+1"]
[EndTime "10:06:36 PDT"]
[Termination "Boxerandchessplayer won on time"]

1. d4 {[%clk 0:03:00.9]} 1... Nf6 {[%clk 0:02:58.8]} 2. Nf3 {[%clk 0:02:58.8]}
2... e6 {[%clk 0:02:55.5]} 3. c4 {[%clk 0:02:55.6]} 3... d5 {[%clk 0:02:51.5]}
4. g3 {[%clk 0:02:53.9]} 4... Bb4+ {[%clk 0:02:46.3]} 5. Bd2 {[%clk 0:02:51.9]}
5... Qe7 {[%clk 0:02:44.9]} 6. Bg2 {[%clk 0:02:48.7]} 6... Ne4 {[%clk
0:02:42.7]} 7. O-O {[%clk 0:02:42.4]} 7... O-O {[%clk 0:02:42.5]} 8. a3 {[%clk
0:02:33.6]} 8... Bxd2 {[%clk 0:02:34.3]} 9. Nbxd2 {[%clk 0:02:34.5]} 9... c6
{[%clk 0:02:34.6]} 10. Qc2 {[%clk 0:02:29.1]} 10... f5 {[%clk 0:02:33.4]} 11.
Ne5 {[%clk 0:02:29.6]} 11... Nd7 {[%clk 0:02:31.1]} 12. Nxd7 {[%clk 0:02:14.9]}
12... Bxd7 {[%clk 0:02:32]} 13. Rac1 {[%clk 0:02:15.3]} 13... g5 {[%clk
0:02:28.2]} 14. f3 {[%clk 0:02:15.1]} 14... Nxd2 {[%clk 0:02:24]} 15. Qxd2
{[%clk 0:02:14.3]} 15... Rf7 {[%clk 0:02:21.2]} 16. e4 {[%clk 0:02:12.4]} 16...
fxe4 {[%clk 0:02:18.8]} 17. fxe4 {[%clk 0:02:11.5]} 17... Raf8 {[%clk
0:02:13.6]} 18. exd5 {[%clk 0:02:07.8]} 18... Rxf1+ {[%clk 0:02:09.7]} 19. Rxf1
{[%clk 0:02:07.1]} 19... Rxf1+ {[%clk 0:02:09.1]} 20. Kxf1 {[%clk 0:02:01.8]}
20... h6 {[%clk 0:01:31.6]} 21. dxc6 {[%clk 0:01:53.1]} 21... Bxc6 {[%clk
0:01:24.5]} 22. Bxc6 {[%clk 0:01:52.2]} 22... bxc6 {[%clk 0:01:25.4]} 23. Kg2
{[%clk 0:01:46.2]} 23... Qb7 {[%clk 0:01:20.8]} 24. Qb4 {[%clk 0:01:41.5]} 24...
Qd7 {[%clk 0:01:01]} 25. Qb8+ {[%clk 0:01:34.4]} 25... Kh7 {[%clk 0:01:00]} 26.
Qe5 {[%clk 0:01:34.8]} 26... Qb7 {[%clk 0:00:53.8]} 27. Qe4+ {[%clk 0:01:26.1]}
27... Kg7 {[%clk 0:00:50.4]} 28. b4 {[%clk 0:01:24.8]} 28... Qa6 {[%clk
0:00:44]} 29. Qxe6 {[%clk 0:00:45.6]} 29... Qxa3 {[%clk 0:00:42.9]} 30. Qd7+
{[%clk 0:00:45.4]} 30... Kg8 {[%clk 0:00:40.5]} 31. Qe8+ {[%clk 0:00:42.6]}
31... Kg7 {[%clk 0:00:39.2]} 32. Qd7+ {[%clk 0:00:42.8]} 32... Kf8 {[%clk
0:00:36.1]} 33. Qxc6 {[%clk 0:00:42.2]} 33... Qxb4 {[%clk 0:00:27.9]} 34. Qxh6+
{[%clk 0:00:41.4]} 34... Kf7 {[%clk 0:00:25.9]} 35. Qh7+ {[%clk 0:00:39.5]}
35... Kf6 {[%clk 0:00:24.8]} 36. Qh8+ {[%clk 0:00:37.3]} 36... Kg6 {[%clk
0:00:24.7]} 37. Qe8+ {[%clk 0:00:35.4]} 37... Kg7 {[%clk 0:00:23]} 38. Qd7+
{[%clk 0:00:34]} 38... Kg6 {[%clk 0:00:21.8]} 39. Qxa7 {[%clk 0:00:30.8]} 39...
Qd2+ {[%clk 0:00:10.9]} 40. Kh3 {[%clk 0:00:27.5]} 40... g4+ {[%clk 0:00:11]}
41. Kxg4 {[%clk 0:00:26.1]} 41... Qe2+ {[%clk 0:00:09.3]} 42. Kf4 {[%clk
0:00:16.9]} 42... Qf2+ {[%clk 0:00:04.4]} 43. Ke4 {[%clk 0:00:16.1]} 43... Qe2+
{[%clk 0:00:03.3]} 44. Kd5 {[%clk 0:00:16.1]} 44... Qf3+ {[%clk 0:00:02.7]} 45.
Kc5 {[%clk 0:00:15.4]} 45... Qf6 {[%clk 0:00:01.3]} 46. Qb6 {[%clk 0:00:14.7]}
1-0